[Event "RUS-ch Men Rapid 2019"]
[Site "Sochi"]
[Date "2019.10.16"]
[Round "10.11"]
[White "Nozdrachev, Vladislav"]
[Black "Samusenko, Maksim"]
[Result "1-0"]
[ECO "B01"]
[WhiteElo "2494"]
[BlackElo "2445"]
[Annotator "ChessBase"]
[PlyCount "103"]
[EventDate "2019.10.15"]
[EventType "swiss"]
[EventCountry "RUS"]
[SourceTitle "playchess.com"]
[Source "ChessBase"]
[SourceQuality "1"]
[TimeControl "900+10"]

1. e4 {[%emt 0:00:00]} d5 {[%emt 0:00:00]} 2. exd5 {[%emt 0:00:00]} Nf6 {[%emt 0:00:00]} 3. d4 {[%emt 0:00:00]} Bg4 {[%emt 0:00:00]} 4. Bb5+ {[%emt 0:00:04]} Nbd7 {[%emt 0:00:01]} 5. Be2 {[%emt 0:00:02]} Bxe2 {[%emt 0:00:11]} 6. Qxe2 {[%emt 0:00:02]} Nxd5 {[%emt 0:00:10]} 7. c4 {[%emt 0:00:06]} N5f6 {[%emt 0:00:09]} 8. Nf3 {[%emt 0:00:01]} c6 {[%emt 0:00:42]} 9. O-O {[%emt 0:00:05]} e6 {[%emt 0:03:33]} 10. Nc3 {[%emt 0:00:02]} Qa5 {[%emt 0:01:26]} 11. d5 cxd5 {[%emt 0:01:19]} 12. cxd5 {[%emt 0:01:34]} Nxd5 {[%emt 0:00:32]} 13. Nxd5 {[%emt 0:00:03]} Qxd5 {[%emt 0:00:01]} 14. Rd1 {[%emt 0:00:01]} Qa5 {[%emt 0:00:28]} 15. Bg5 {[%emt 0:02:06]} Be7 {[%emt 0:02:47]} 16. Bxe7 {[%emt 0:00:50]} Kxe7 {[%emt 0:00:02]} 17. Qd3 {[%emt 0:00:01]} Rhd8 {[%emt 0:03:05]} 18. Qxh7 {[%emt 0:00:05]} g6 {[%emt 0:00:04]} 19. Qg7 {[%emt 0:03:31]} Qf5 {[%emt 0:00:31]} 20. Qc3 {[%emt 0:00:32]} Rac8 {[%emt 0:01:24]} 21. Qb4+ {[%emt 0:00:26]} Nc5 {[%emt 0:00:06]} 22. Re1 {[%emt 0:00:19]} b6 {[%emt 0:00:14]} 23. Qa3 {[%emt 0:00:33]} Rc7 {[%emt 0:00:16]} 24. Ne5 {[%emt 0:00:54]} Kf8 {[%emt 0:00:22]} 25. Qc3 {[%emt 0:00:23]} Rcc8 {[%emt 0:00:14]} 26. Rad1 {[%emt 0:01:30]} Kg8 {[%emt 0:00:14]} 27. Nc6 {[%emt 0:01:23]} Re8 {[%emt 0:00:17]} 28. Nxa7 {[%emt 0:00:09]} Ra8 {[%emt 0:00:23]} 29. Nc6 {[%emt 0:00:19]} Rac8 {[%emt 0:00:41]} 30. Nd4 {[%emt 0:00:10]} Qf6 {[%emt 0:00:06]} 31. Nb5 {[%emt 0:00:19]} Qxc3 {[%emt 0:00:08]} 32. Nxc3 {[%emt 0:00:04]} Red8 {[%emt 0:00:12]} 33. Kf1 {[%emt 0:00:11]} Kf8 {[%emt 0:00:02]} 34. Rxd8+ {[%emt 0:00:06]} Rxd8 {[%emt 0:00:01]} 35. Rd1 {[%emt 0:00:01]} Rb8 {[%emt 0:00:23]} 36. Nb5 {[%emt 0:00:05]} Ke7 {[%emt 0:00:06]} 37. Ke2 {[%emt 0:00:06]} g5 {[%emt 0:00:03]} 38. a3 {[%emt 0:00:07]} g4 {[%emt 0:00:05]} 39. b4 {[%emt 0:00:50]} Nd7 {[%emt 0:00:12]} 40. a4 {[%emt 0:00:22]} Ra8 {[%emt 0:00:13]} 41. Ra1 {[%emt 0:00:01]} Nf6 {[%emt 0:00:22]} 42. a5 {[%emt 0:00:05]} Ra6 {[%emt 0:00:24]} 43. Nc7 {[%emt 0:00:13]} Ra7 {[%emt 0:00:03]} 44. a6 {[%emt 0:00:07]} Kd7 {[%emt 0:00:19]} 45. Nb5 {[%emt 0:00:03]} Ra8 {[%emt 0:00:01]} 46. Kd3 {[%emt 0:00:20]} Nd5 {[%emt 0:00:07]} 47. Kc4 {[%emt 0:00:04]} Rc8+ {[%emt 0:00:17]} 48. Kb3 {[%emt 0:00:02]} Ra8 {[%emt 0:00:19]} 49. Nc3 {[%emt 0:00:10]} Kc6 {[%emt 0:00:18]} 50. Nxd5 {[%emt 0:00:14]} exd5 {[%emt 0:00:03]} 51. a7 {[%emt 0:00:04]} Kb7 {[%emt 0:00:12]} 52. h4 {[%emt 0:00:01]} 1-0

[Event "RUS-ch Men Rapid 2019"]
[Site "Sochi"]
[Date "2019.10.16"]
[Round "10.12"]
[White "Papin, Vasily"]
[Black "Zakaryan, David"]
[Result "0-1"]
[ECO "A05"]
[WhiteElo "2481"]
[BlackElo "2338"]
[Annotator "ChessBase"]
[PlyCount "118"]
[EventDate "2019.10.15"]
[EventType "swiss"]
[EventCountry "RUS"]
[SourceTitle "playchess.com"]
[Source "ChessBase"]
[SourceQuality "1"]
[TimeControl "900+10"]

1. Nf3 {[%emt 0:00:00]} Nf6 {[%emt 0:00:00]} 2. c4 {[%emt 0:00:00]} e6 {[%emt 0:00:01]} 3. Nc3 {[%emt 0:00:02]} d5 {[%emt 0:00:03]} 4. e3 {[%emt 0:00:03]} a6 {[%emt 0:00:01]} 5. b3 {[%emt 0:00:35]} b6 {[%emt 0:00:05]} 6. Bb2 {[%emt 0:00:13]} Bb7 {[%emt 0:00:02]} 7. Be2 {[%emt 0:00:52]} Nbd7 {[%emt 0:00:05]} 8. O-O {[%emt 0:00:42]} Bd6 {[%emt 0:00:03]} 9. cxd5 {[%emt 0:00:16]} exd5 {[%emt 0:00:04]} 10. d4 {[%emt 0:00:49]} Qe7 {[%emt 0:00:03]} 11. Re1 {[%emt 0:00:02]} O-O {[%emt 0:00:02]} 12. Bf1 {[%emt 0:00:01]} Ne4 {[%emt 0:00:01]} 13. g3 {[%emt 0:01:14]} f5 {[%emt 0:00:31]} 14. Bg2 {[%emt 0:00:21]} Rae8 {[%emt 0:00:08]} 15. Rc1 {[%emt 0:00:14]} g5 {[%emt 0:00:25]} 16. Qc2 {[%emt 0:00:48]} Qg7 {[%emt 0:00:26]} 17. Nd2 {[%emt 0:02:13]} h5 {[%emt 0:00:56]} 18. f3 {[%emt 0:01:38]} Nxd2 {[%emt 0:00:23]} 19. Qxd2 {[%emt 0:00:01]} Nf6 {[%emt 0:00:20]} 20. Kh1 {[%emt 0:02:31]} Re7 {[%emt 0:02:21]} 21. Bh3 {[%emt 0:01:53]} g4 {[%emt 0:00:20]} 22. Bg2 {[%emt 0:00:02]} Qh6 {[%emt 0:00:34]} 23. f4 {[%emt 0:00:25]} h4 {[%emt 0:00:05]} 24. Kg1 {[%emt 0:00:01]} Rfe8 {[%emt 0:01:13]} 25. Qf2 {[%emt 0:01:00]} Rh7 {[%emt 0:00:14]} 26. gxh4 {[%emt 0:00:18]} Qg6 {[%emt 0:00:24]} 27. Ne2 {[%emt 0:00:39]} Kg7 {[%emt 0:00:31]} 28. Ng3 {[%emt 0:00:02]} Reh8 {[%emt 0:00:04]} 29. Rc3 {[%emt 0:00:31]} Rxh4 {[%emt 0:00:07]} 30. Rec1 {[%emt 0:01:07]} Ne8 {[%emt 0:00:30]} 31. R1c2 {[%emt 0:01:21]} R8h7 {[%emt 0:00:08]} 32. Rc1 {[%emt 0:00:05]} Qe6 {[%emt 0:00:04]} 33. Qc2 {[%emt 0:00:02]} Kg6 {[%emt 0:00:15]} 34. Bf1 {[%emt 0:00:09]} Rxh2 {[%emt 0:00:23]} 35. Qxh2 {[%emt 0:00:17]} Rxh2 {[%emt 0:00:01]} 36. Kxh2 {[%emt 0:00:01]} Bb4 {[%emt 0:00:33]} 37. Rd3 {[%emt 0:00:25]} Qe7 {[%emt 0:00:52]} 38. Kg2 {[%emt 0:00:08]} Qh4 {[%emt 0:01:02]} 39. Bc3 {[%emt 0:00:14]} Ba3 {[%emt 0:03:56]} 40. Rc2 {[%emt 0:00:01]} c5 {[%emt 0:00:23]} 41. Be1 {[%emt 0:00:08]} c4 {[%emt 0:00:05]} 42. Rd1 {[%emt 0:00:23]} Qh7 {[%emt 0:00:56]} 43. Kg1 {[%emt 0:00:09]} Qe7 {[%emt 0:00:09]} 44. Bf2 {[%emt 0:00:09]} b5 {[%emt 0:00:04]} 45. Bg2 {[%emt 0:00:11]} Nd6 {[%emt 0:00:12]} 46. bxc4 {[%emt 0:00:06]} dxc4 {[%emt 0:01:50]} 47. d5 {[%emt 0:00:04]} Bc5 {[%emt 0:00:02]} 48. Re2 {[%emt 0:00:05]} Ne4 {[%emt 0:00:21]} 49. Bxe4 {[%emt 0:00:26]} fxe4 {[%emt 0:00:01]} 50. d6 {[%emt 0:00:11]} Qd7 {[%emt 0:00:21]} 51. Red2 {[%emt 0:00:09]} c3 {[%emt 0:00:03]} 52. Rc2 {[%emt 0:00:01]} b4 {[%emt 0:00:01]} 53. Kg2 {[%emt 0:00:03]} Bc6 {[%emt 0:00:06]} 54. Rcc1 {[%emt 0:00:02]} a5 {[%emt 0:00:10]} 55. Ne2 {[%emt 0:00:04]} g3 {[%emt 0:00:31]} 56. Kxg3 {[%emt 0:00:10]} Qe6 {[%emt 0:00:23]} 57. Nxc3 {[%emt 0:00:08]} bxc3 {[%emt 0:00:12]} 58. Rxc3 {[%emt 0:00:00]} Bd7 {[%emt 0:00:02]} 59. Rg1 {[%emt 0:00:47]} Qh3# {[%emt 0:00:03]} 0-1

[Event "RUS-ch Men Rapid 2019"]
[Site "Sochi"]
[Date "2019.10.16"]
[Round "10.13"]
[White "Tsydypov, Zhamsaran"]
[Black "Ulybin, Mikhail"]
[Result "0-1"]
[ECO "A05"]
[WhiteElo "2553"]
[BlackElo "2455"]
[Annotator "ChessBase"]
[PlyCount "82"]
[EventDate "2019.10.15"]
[EventType "swiss"]
[EventCountry "RUS"]
[SourceTitle "playchess.com"]
[Source "ChessBase"]
[SourceQuality "1"]
[TimeControl "900+10"]

1. Nf3 {[%emt 0:00:00]} Nf6 {[%emt 0:00:00]} 2. c4 {[%emt 0:00:00]} c5 {[%emt 0:00:04]} 3. b3 {[%emt 0:00:03]} b6 {[%emt 0:00:29]} 4. Bb2 {[%emt 0:00:10]} Bb7 {[%emt 0:00:04]} 5. e3 {[%emt 0:00:06]} g6 {[%emt 0:00:47]} 6. Be2 {[%emt 0:00:08]} Bg7 {[%emt 0:00:05]} 7. O-O {[%emt 0:00:03]} O-O {[%emt 0:00:07]} 8. d4 {[%emt 0:00:02]} cxd4 {[%emt 0:00:58]} 9. Nxd4 {[%emt 0:00:07]} Nc6 {[%emt 0:00:29]} 10. Bf3 {[%emt 0:00:05]} Na5 {[%emt 0:01:53]} 11. Nc3 {[%emt 0:01:13]} d5 {[%emt 0:00:52]} 12. Ba3 {[%emt 0:00:26]} Re8 {[%emt 0:03:54]} 13. Rc1 {[%emt 0:00:21]} dxc4 {[%emt 0:01:19]} 14. b4 {[%emt 0:00:36]} Bxf3 {[%emt 0:02:00]} 15. Qxf3 {[%emt 0:00:03]} e5 {[%emt 0:00:04]} 16. Ndb5 {[%emt 0:00:04]} e4 {[%emt 0:00:23]} 17. Qe2 {[%emt 0:00:34]} Nc6 {[%emt 0:01:27]} 18. Rfd1 {[%emt 0:00:30]} Qb8 {[%emt 0:00:16]} 19. Nd6 {[%emt 0:00:47]} Re6 {[%emt 0:00:13]} 20. b5 {[%emt 0:00:07]} Ne5 {[%emt 0:00:41]} 21. Ncxe4 {[%emt 0:00:17]} Nxe4 {[%emt 0:00:21]} 22. Nxe4 {[%emt 0:00:02]} a6 {[%emt 0:00:46]} 23. Ng5 {[%emt 0:02:21]} Re8 {[%emt 0:00:34]} 24. Bd6 {[%emt 0:00:07]} Qb7 {[%emt 0:00:11]} 25. f4 {[%emt 0:00:15]} Nd3 {[%emt 0:00:48]} 26. Rxc4 {[%emt 0:00:04]} Nc5 {[%emt 0:00:14]} 27. Rc2 {[%emt 0:03:04]} h6 {[%emt 0:00:14]} 28. Nf3 {[%emt 0:00:06]} Qe4 {[%emt 0:00:08]} 29. Be5 {[%emt 0:00:11]} axb5 {[%emt 0:00:11]} 30. Rd4 {[%emt 0:00:06]} Qf5 {[%emt 0:00:08]} 31. e4 {[%emt 0:00:05]} Bxe5 {[%emt 0:00:08]} 32. fxe5 {[%emt 0:00:12]} Qg4 {[%emt 0:00:09]} 33. Qxb5 {[%emt 0:00:05]} Ne6 {[%emt 0:00:06]} 34. Rb4 {[%emt 0:01:21]} Red8 {[%emt 0:00:09]} 35. Qf1 {[%emt 0:00:12]} Ra3 {[%emt 0:00:15]} 36. h3 {[%emt 0:00:30]} Qg3 {[%emt 0:00:06]} 37. Rb3 {[%emt 0:01:34]} Rxb3 {[%emt 0:00:15]} 38. axb3 {[%emt 0:00:01]} Nf4 {[%emt 0:00:07]} 39. Kh1 {[%emt 0:00:02]} Rd3 {[%emt 0:00:15]} 40. Rc8+ {[%emt 0:00:25]} Kg7 {[%emt 0:00:08]} 41. e6 {[%emt 0:00:05]} Rd1 {[%emt 0:00:05]} 0-1

[Event "RUS-ch Men Rapid 2019"]
[Site "Sochi"]
[Date "2019.10.16"]
[Round "10.14"]
[White "Popov, Valerij"]
[Black "Tekeyev, Zaur"]
[Result "0-1"]
[ECO "A20"]
[WhiteElo "2535"]
[BlackElo "2384"]
[Annotator "ChessBase"]
[PlyCount "74"]
[EventDate "2019.10.15"]
[EventType "swiss"]
[EventCountry "RUS"]
[SourceTitle "playchess.com"]
[Source "ChessBase"]
[SourceQuality "1"]
[TimeControl "900+10"]

1. c4 {[%emt 0:00:00]} e5 {[%emt 0:00:00]} 2. g3 {[%emt 0:00:00]} Nc6 {[%emt 0:00:04]} 3. Nc3 {[%emt 0:00:00]} Bc5 {[%emt 0:00:03]} 4. Bg2 {[%emt 0:00:00]} a6 {[%emt 0:00:06]} 5. e3 {[%emt 0:00:01]} d6 {[%emt 0:00:08]} 6. Nge2 {[%emt 0:00:04]} Ba7 {[%emt 0:00:03]} 7. a3 {[%emt 0:00:06]} h5 {[%emt 0:00:02]} 8. b4 {[%emt 0:00:04]} h4 {[%emt 0:00:06]} 9. Bb2 {[%emt 0:00:03]} Bf5 {[%emt 0:00:55]} 10. d4 {[%emt 0:00:33]} Nf6 {[%emt 0:01:30]} 11. Bxc6+ {[%emt 0:04:16]} bxc6 {[%emt 0:00:02]} 12. dxe5 {[%emt 0:00:01]} Ng4 {[%emt 0:02:06]} 13. Nd4 {[%emt 0:07:57]} Bxd4 {[%emt 0:01:36]} 14. exd4 {[%emt 0:00:27]} hxg3 {[%emt 0:01:05]} 15. fxg3 {[%emt 0:00:02]} dxe5 {[%emt 0:00:23]} 16. Qf3 {[%emt 0:00:12]} exd4 {[%emt 0:04:15]} 17. Qxf5 {[%emt 0:00:29]} dxc3 {[%emt 0:00:05]} 18. Bxc3 {[%emt 0:01:17]} Qe7+ {[%emt 0:00:29]} 19. Kd2 {[%emt 0:00:02]} Ne3 {[%emt 0:03:33]} 20. Qf4 {[%emt 0:00:13]} Rd8+ {[%emt 0:01:01]} 21. Kc1 {[%emt 0:00:17]} Rh6 {[%emt 0:00:20]} 22. Bxg7 {[%emt 0:01:28]} Re6 {[%emt 0:00:07]} 23. Re1 {[%emt 0:00:14]} Re4 {[%emt 0:00:19]} 24. Qf3 {[%emt 0:00:20]} Rxc4+ {[%emt 0:00:20]} 25. Kb1 {[%emt 0:00:03]} Rd3 {[%emt 0:00:10]} 26. Ra2 {[%emt 0:00:10]} Re4 {[%emt 0:00:20]} 27. Rae2 {[%emt 0:00:17]} Rb3+ {[%emt 0:00:08]} 28. Bb2 {[%emt 0:00:04]} Qe6 {[%emt 0:00:09]} 29. Qh5 {[%emt 0:00:28]} Kd7 {[%emt 0:00:13]} 30. Qc5 {[%emt 0:00:13]} Kc8 {[%emt 0:00:07]} 31. Qa7 {[%emt 0:00:16]} f5 {[%emt 0:00:11]} 32. Qa8+ {[%emt 0:00:12]} Kd7 {[%emt 0:00:02]} 33. Qxa6 {[%emt 0:00:07]} Nc4 {[%emt 0:00:09]} 34. Rd1+ {[%emt 0:00:25]} Ke7 {[%emt 0:00:05]} 35. Rxe4 {[%emt 0:00:14]} Qxe4+ 36. Ka1 Nxb2 {[%emt 0:00:23]} 37. Rc1 {[%emt 0:00:16]} Nd3 {[%emt 0:00:12]} 0-1

[Event "RUS-ch Men Rapid 2019"]
[Site "Sochi"]
[Date "2019.10.16"]
[Round "10.15"]
[White "Apryshko, Gleb"]
[Black "Triapishko, Alexandr"]
[Result "0-1"]
[ECO "A00"]
[WhiteElo "2382"]
[BlackElo "2514"]
[Annotator "ChessBase"]
[PlyCount "87"]
[EventDate "2019.10.15"]
[EventType "swiss"]
[EventCountry "RUS"]
[SourceTitle "playchess.com"]
[Source "ChessBase"]
[SourceQuality "1"]
[TimeControl "900+10"]

1. g3 {[%emt 0:00:07]} Nf6 {[%emt 0:00:41]} 2. Bg2 {[%emt 0:00:02]} e5 {[%emt 0:00:22]} 3. d3 {[%emt 0:00:05]} d5 {[%emt 0:00:40]} 4. Nd2 {[%emt 0:01:09]} Nc6 {[%emt 0:01:26]} 5. e3 {[%emt 0:00:09]} g6 {[%emt 0:00:36]} 6. Ne2 {[%emt 0:00:09]} Bg7 {[%emt 0:00:05]} 7. h3 {[%emt 0:00:10]} O-O {[%emt 0:00:28]} 8. O-O {[%emt 0:00:04]} a5 {[%emt 0:00:35]} 9. f4 {[%emt 0:00:03]} exf4 {[%emt 0:01:53]} 10. Nxf4 {[%emt 0:00:26]} Re8 {[%emt 0:01:08]} 11. Kh2 {[%emt 0:02:17]} a4 {[%emt 0:00:29]} 12. a3 {[%emt 0:00:01]} Qd6 {[%emt 0:02:48]} 13. c4 {[%emt 0:00:27]} d4 {[%emt 0:01:31]} 14. Nd5 {[%emt 0:01:03]} Nh5 {[%emt 0:01:10]} 15. Qf3 {[%emt 0:00:41]} Ne5 {[%emt 0:00:22]} 16. Qf2 {[%emt 0:00:20]} dxe3 {[%emt 0:01:05]} 17. Nxe3 {[%emt 0:00:03]} f5 {[%emt 0:00:16]} 18. Nd5 {[%emt 0:08:39]} Nxd3 {[%emt 0:00:21]} 19. c5 {[%emt 0:00:01]} Qd8 {[%emt 0:00:15]} 20. Qf3 {[%emt 0:00:38]} Ne5 {[%emt 0:00:19]} 21. Qd1 {[%emt 0:00:36]} Be6 {[%emt 0:00:16]} 22. Nb1 {[%emt 0:01:07]} c6 {[%emt 0:00:27]} 23. Nb6 {[%emt 0:00:03]} Qxd1 {[%emt 0:00:08]} 24. Rxd1 {[%emt 0:00:01]} Rad8 {[%emt 0:00:02]} 25. Rxd8 {[%emt 0:00:16]} Rxd8 {[%emt 0:00:01]} 26. Nc3 {[%emt 0:00:16]} Nd3 {[%emt 0:00:18]} 27. Bg5 {[%emt 0:00:06]} Re8 {[%emt 0:00:10]} 28. Ncxa4 {[%emt 0:00:23]} Be5 {[%emt 0:00:12]} 29. Rd1 {[%emt 0:00:17]} Bxg3+ {[%emt 0:00:59]} 30. Kg1 {[%emt 0:00:08]} Bf2+ {[%emt 0:00:05]} 31. Kh2 {[%emt 0:00:12]} Nxc5 {[%emt 0:00:08]} 32. Nxc5 {[%emt 0:00:07]} Bxc5 {[%emt 0:00:04]} 33. Nd7 {[%emt 0:00:04]} Be7 {[%emt 0:00:38]} 34. h4 {[%emt 0:00:10]} Bxg5 {[%emt 0:00:15]} 35. hxg5 {[%emt 0:00:00]} Kf7 {[%emt 0:00:04]} 36. Nc5 {[%emt 0:00:12]} Bc8 {[%emt 0:00:08]} 37. Bf1 {[%emt 0:00:18]} Nf4 {[%emt 0:00:16]} 38. Bc4+ {[%emt 0:00:10]} Ke7 {[%emt 0:00:19]} 39. Kg3 {[%emt 0:00:15]} Nh5+ {[%emt 0:00:11]} 40. Kf3 {[%emt 0:00:07]} b6 {[%emt 0:00:11]} 41. Nd3 {[%emt 0:00:16]} Rd8 {[%emt 0:00:14]} 42. Re1+ {[%emt 0:00:03]} Kf8 {[%emt 0:00:08]} 43. Ne5 {[%emt 0:00:14]} Rd4 {[%emt 0:00:05]} 44. b3 {[%emt 0:00:25]} 0-1

[Event "RUS-ch Men Rapid 2019"]
[Site "Sochi"]
[Date "2019.10.16"]
[Round "10.16"]
[White "Truskavetsky, Alexandr"]
[Black "Savchenko, Boris"]
[Result "0-1"]
[ECO "A13"]
[WhiteElo "2370"]
[BlackElo "2581"]
[Annotator "ChessBase"]
[PlyCount "130"]
[EventDate "2019.10.15"]
[EventType "swiss"]
[EventCountry "RUS"]
[SourceTitle "playchess.com"]
[Source "ChessBase"]
[SourceQuality "1"]
[TimeControl "900+10"]

1. c4 {[%emt 0:00:00]} e6 {[%emt 0:00:00]} 2. g3 {[%emt 0:00:00]} d5 {[%emt 0:00:02]} 3. Bg2 {[%emt 0:00:01]} Nf6 {[%emt 0:00:03]} 4. Nf3 {[%emt 0:00:02]} d4 {[%emt 0:00:02]} 5. O-O {[%emt 0:00:18]} Nc6 {[%emt 0:00:02]} 6. e3 {[%emt 0:00:24]} Bc5 {[%emt 0:00:02]} 7. b4 {[%emt 0:01:35]} Nxb4 {[%emt 0:01:40]} 8. exd4 {[%emt 0:00:17]} Be7 {[%emt 0:00:03]} 9. d3 {[%emt 0:00:38]} O-O {[%emt 0:00:18]} 10. Nc3 {[%emt 0:00:31]} Nc6 {[%emt 0:00:41]} 11. Be3 {[%emt 0:00:50]} Ng4 {[%emt 0:00:17]} 12. d5 {[%emt 0:01:01]} exd5 {[%emt 0:00:07]} 13. Nxd5 {[%emt 0:00:06]} Nxe3 {[%emt 0:00:03]} 14. fxe3 {[%emt 0:00:08]} Bd6 {[%emt 0:00:10]} 15. d4 {[%emt 0:00:54]} Ne7 {[%emt 0:00:20]} 16. Nxe7+ {[%emt 0:02:35]} Bxe7 {[%emt 0:00:06]} 17. e4 {[%emt 0:00:19]} Bg4 {[%emt 0:00:50]} 18. e5 {[%emt 0:01:34]} Qd7 {[%emt 0:00:03]} 19. Qd2 {[%emt 0:01:25]} Rad8 {[%emt 0:01:15]} 20. d5 {[%emt 0:00:06]} Bc5+ {[%emt 0:06:22]} 21. Kh1 {[%emt 0:00:02]} c6 {[%emt 0:00:02]} 22. e6 {[%emt 0:01:20]} Bxe6 {[%emt 0:00:11]} 23. Qa5 {[%emt 0:00:23]} cxd5 {[%emt 0:00:22]} 24. Qxc5 {[%emt 0:00:15]} b6 {[%emt 0:00:03]} 25. Qe3 {[%emt 0:00:42]} dxc4 {[%emt 0:00:04]} 26. Ne5 {[%emt 0:01:03]} Qd2 {[%emt 0:00:22]} 27. Qxd2 {[%emt 0:01:30]} Rxd2 {[%emt 0:00:03]} 28. Rfc1 {[%emt 0:00:30]} Rc8 {[%emt 0:00:23]} 29. a4 {[%emt 0:00:44]} c3 {[%emt 0:00:32]} 30. Nf3 {[%emt 0:00:25]} Rd5 {[%emt 0:00:21]} 31. Kg1 {[%emt 0:00:17]} a6 {[%emt 0:00:35]} 32. Rab1 {[%emt 0:00:13]} h6 {[%emt 0:02:10]} 33. Kf2 {[%emt 0:00:02]} Rd6 {[%emt 0:00:02]} 34. Rb4 {[%emt 0:00:10]} Bd7 {[%emt 0:00:21]} 35. Ke3 {[%emt 0:00:14]} a5 {[%emt 0:00:45]} 36. Rd4 {[%emt 0:00:02]} Rxd4 {[%emt 0:00:05]} 37. Kxd4 {[%emt 0:00:02]} c2 {[%emt 0:00:02]} 38. Ne5 {[%emt 0:00:28]} Bxa4 {[%emt 0:00:09]} 39. Nc4 {[%emt 0:00:02]} Rd8+ {[%emt 0:01:23]} 40. Kc3 {[%emt 0:00:01]} Rd1 {[%emt 0:00:01]} 41. Kb2 {[%emt 0:00:01]} Rd3 {[%emt 0:00:02]} 42. Be4 {[%emt 0:00:32]} Rb3+ {[%emt 0:00:13]} 43. Ka2 {[%emt 0:00:01]} Rb4 {[%emt 0:00:01]} 44. Bxc2 {[%emt 0:00:06]} Rxc4 {[%emt 0:00:02]} 45. Bh7+ {[%emt 0:00:02]} Kxh7 {[%emt 0:00:01]} 46. Rxc4 {[%emt 0:00:01]} Bd7 {[%emt 0:00:03]} 47. Rc7 {[%emt 0:00:16]} Be6+ {[%emt 0:00:02]} 48. Kb2 {[%emt 0:00:20]} b5 {[%emt 0:00:01]} 49. Ra7 {[%emt 0:00:28]} a4 {[%emt 0:00:02]} 50. Kc3 {[%emt 0:00:03]} Kg6 {[%emt 0:00:05]} 51. Kb4 {[%emt 0:00:10]} Bc4 {[%emt 0:00:02]} 52. Ra8 {[%emt 0:00:15]} Kg5 {[%emt 0:00:08]} 53. Rg8 {[%emt 0:00:14]} g6 {[%emt 0:00:02]} 54. Rd8 {[%emt 0:00:03]} Kg4 {[%emt 0:00:12]} 55. Rd2 {[%emt 0:00:06]} g5 {[%emt 0:00:38]} 56. Rf2 {[%emt 0:00:04]} f5 {[%emt 0:00:01]} 57. Rd2 {[%emt 0:00:20]} f4 {[%emt 0:00:09]} 58. gxf4 {[%emt 0:00:10]} Kxf4 {[%emt 0:00:02]} 59. Rd6 {[%emt 0:00:10]} h5 {[%emt 0:00:01]} 60. Ra6 {[%emt 0:00:06]} h4 {[%emt 0:00:04]} 61. Kc5 {[%emt 0:00:04]} Kg4 {[%emt 0:00:08]} 62. Kd4 {[%emt 0:00:04]} Kh3 {[%emt 0:00:01]} 63. Ke3 {[%emt 0:00:34]} Kxh2 {[%emt 0:00:02]} 64. Kf3 {[%emt 0:00:09]} Kh3 {[%emt 0:00:03]} 65. Rg6 {[%emt 0:00:08]} g4+ {[%emt 0:00:02]} 0-1

[Event "RUS-ch Men Rapid 2019"]
[Site "Sochi"]
[Date "2019.10.16"]
[Round "10.18"]
[White "Gogolev, Artem"]
[Black "Zakhartsov, Vladimir"]
[Result "0-1"]
[ECO "D85"]
[WhiteElo "2328"]
[BlackElo "2514"]
[Annotator "ChessBase"]
[PlyCount "72"]
[EventDate "2019.10.15"]
[EventType "swiss"]
[EventCountry "RUS"]
[SourceTitle "playchess.com"]
[Source "ChessBase"]
[SourceQuality "1"]
[TimeControl "900+10"]

1. d4 {[%emt 0:00:00]} Nf6 {[%emt 0:00:00]} 2. c4 {[%emt 0:00:00]} g6 {[%emt 0:00:00]} 3. Nc3 {[%emt 0:00:00]} d5 {[%emt 0:00:00]} 4. cxd5 {[%emt 0:00:00]} Nxd5 {[%emt 0:00:00]} 5. Nf3 {[%emt 0:00:05]} Bg7 {[%emt 0:00:00]} 6. Qa4+ {[%emt 0:00:02]} Nc6 {[%emt 0:00:21]} 7. e4 {[%emt 0:00:10]} Nb6 {[%emt 0:00:06]} 8. Qc2 {[%emt 0:00:24]} O-O {[%emt 0:02:00]} 9. d5 {[%emt 0:00:33]} Na5 {[%emt 0:00:13]} 10. Be2 {[%emt 0:00:30]} c6 {[%emt 0:00:09]} 11. dxc6 {[%emt 0:00:16]} Nxc6 {[%emt 0:00:01]} 12. O-O {[%emt 0:00:09]} Bg4 {[%emt 0:00:24]} 13. Rd1 {[%emt 0:00:51]} Qe8 {[%emt 0:00:08]} 14. Be3 {[%emt 0:02:15]} Rc8 {[%emt 0:00:14]} 15. Nd4 {[%emt 0:02:05]} Ne5 {[%emt 0:00:35]} 16. f3 {[%emt 0:00:18]} Bd7 {[%emt 0:00:03]} 17. Rac1 {[%emt 0:00:31]} Nec4 {[%emt 0:00:19]} 18. Bxc4 {[%emt 0:00:59]} Nxc4 {[%emt 0:00:04]} 19. Qe2 {[%emt 0:00:03]} Nxe3 {[%emt 0:00:23]} 20. Qxe3 {[%emt 0:00:01]} e6 {[%emt 0:00:22]} 21. e5 {[%emt 0:02:06]} Qe7 {[%emt 0:00:30]} 22. f4 {[%emt 0:01:42]} Qb4 {[%emt 0:00:08]} 23. b3 {[%emt 0:00:34]} Qa5 {[%emt 0:01:17]} 24. a4 {[%emt 0:01:33]} g5 {[%emt 0:05:34]} 25. g3 {[%emt 0:01:00]} gxf4 {[%emt 0:00:22]} 26. gxf4 {[%emt 0:00:02]} f6 {[%emt 0:00:20]} 27. Nf5 {[%emt 0:02:00]} exf5 {[%emt 0:00:40]} 28. Rxd7 {[%emt 0:00:02]} fxe5 {[%emt 0:00:07]} 29. Nd5 {[%emt 0:01:09]} Rxc1+ {[%emt 0:01:11]} 30. Qxc1 {[%emt 0:00:01]} Kh8 {[%emt 0:00:08]} 31. Ne7 {[%emt 0:00:19]} Qb6+ {[%emt 0:00:14]} 32. Kg2 {[%emt 0:00:15]} Qxb3 {[%emt 0:00:15]} 33. Qe1 {[%emt 0:00:22]} Qxa4 {[%emt 0:00:19]} 34. Rc7 {[%emt 0:00:09]} Qxf4 {[%emt 0:00:15]} 35. Rxb7 {[%emt 0:00:05]} e4 {[%emt 0:00:12]} 36. Rxa7 {[%emt 0:00:06]} Qf3+ {[%emt 0:00:03]} 0-1